bitfinex-derivatives/quotes_SOLF0:USTF0_20260104
["timestamp","ask_amount","ask_price","bid_price","bid_amount"]
[1767513546612,0.04908621,133.89,133.84,0.61526366]
[1767513546815,5.73639378,133.88,133.84,0.61526366]
[1767513547023,0.04908621,133.89,133.84,0.61526366]
[1767513547329,5.73639378,133.88,133.84,0.61526366]
[1767513547522,0.04908621,133.89,133.84,0.61526366]
[1767513547824,5.73644506,133.88,133.84,0.61526366]
[1767513548129,0.04908621,133.89,133.84,0.61526366]
[1767513548323,5.73623884,133.88,133.84,0.61526366]
[1767513548527,0.04908621,133.89,133.84,0.61526366]
[1767513548719,5.73635174,133.88,133.84,0.61526366]
[1767513548918,0.04908621,133.89,133.84,0.61526366]
[1767513549124,5.73635174,133.88,133.84,0.61526366]
[1767513549428,0.04908621,133.89,133.84,0.61526366]
[1767513549623,5.73651557,133.88,133.84,0.61526366]
[1767513549826,0.04908621,133.89,133.84,0.61526366]
[1767513550019,5.73653636,133.88,133.84,0.61526366]
[1767513550218,0.04908621,133.89,133.84,0.61526366]
[1767513550430,6.50880788,133.88,133.84,0.61526366]
[1767513550631,0.77213715,133.88,133.84,0.61526366]
[1767513554331,5.73879594,133.87,133.84,0.61526366]
[1767513554531,0.77213715,133.88,133.84,0.61526366]
[1767513554732,5.73883868,133.87,133.84,0.61526366]
[1767513554926,0.77213715,133.88,133.84,0.61526366]
[1767513555129,5.73883868,133.87,133.84,0.61526366]
[1767513555435,0.77213715,133.88,133.84,0.61526366]
[1767513555638,5.73902108,133.87,133.84,0.61526366]
[1767513555820,0.04908621,133.89,133.84,0.61526366]
[1767513556028,5.73949517,133.88,133.84,0.61526366]
[1767513556326,5.739682,133.87,133.84,0.61526366]
[1767513556636,0.04908621,133.89,133.84,0.61526366]
[1767513556935,5.739682,133.88,133.84,0.61526366]
[1767513557133,5.739682,133.87,133.84,0.61526366]
[1767513557328,0.04908621,133.89,133.84,0.61526366]
[1767513557524,5.73990289,133.88,133.84,0.61526366]
[1767513557725,5.73990289,133.87,133.84,0.61526366]
[1767513558029,0.04908621,133.89,133.84,0.61526366]
[1767513558225,5.73990289,133.88,133.84,0.61526366]
[1767513558430,5.73990289,133.87,133.84,0.61526366]
[1767513558633,0.04908621,133.89,133.84,0.61526366]
[1767513558833,5.74013034,133.88,133.84,0.61526366]
[1767513559039,5.74013034,133.87,133.84,0.61526366]
[1767513559241,0.04908621,133.89,133.84,0.61526366]
[1767513559542,5.74042852,133.88,133.84,0.61526366]
[1767513559836,5.74042852,133.87,133.84,0.61526366]
[1767513560025,0.04908621,133.89,133.84,0.61526366]
[1767513560338,5.74041713,133.88,133.84,0.61526366]
[1767513560527,5.74041713,133.87,133.84,0.61526366]
[1767513560836,0.04908621,133.89,133.84,0.61526366]
[1767513561028,5.74074027,133.88,133.84,0.61526366]
[1767513561224,5.74074027,133.87,133.84,0.61526366]
[1767513561428,0.04908621,133.89,133.84,0.61526366]
[1767513561628,5.74109357,133.88,133.84,0.61526366]
[1767513561929,5.74109357,133.87,133.84,0.61526366]
[1767513562129,6.77408621,133.89,133.84,0.61526366]
[1767513562330,5.74108218,133.88,133.84,0.61526366]
[1767513562534,5.74108218,133.87,133.84,0.61526366]
[1767513563143,0.77213715,133.86,133.83,19.03353392]
[1767513563330,5.74055354,133.85,133.8,0.54297924]
[1767513563635,0.77213715,133.86,133.8,0.54297924]
[1767513563833,5.74044229,133.85,133.8,0.54297924]
[1767513564027,0.77213715,133.86,133.8,0.54297924]
[1767513564228,0.05553589,133.84,133.8,0.54297924]
[1767513579349,0.05553589,133.84,133.81,0.56391368]
[1767513590460,0.77213715,133.88,133.81,0.56391368]
[1767513590662,5.75670774,133.87,133.81,0.56391368]
[1767513590958,5.75670774,133.86,133.82,0.59309004]
[1767513591158,5.75670774,133.85,133.82,0.59309004]
[1767513591359,0.77213715,133.88,133.82,0.59309004]
[1767513591555,0.04821332,133.85,133.82,0.64416746]
[1767513593154,0.77213715,133.88,133.82,0.64416746]
[1767513593355,5.75738503,133.87,133.82,0.64416746]
[1767513593563,5.75738503,133.86,133.82,0.64416746]
[1767513593763,0.77213715,133.88,133.82,0.64416746]
[1767513593964,5.75762211,133.87,133.82,0.64416746]
[1767513594165,5.75762211,133.86,133.82,0.64416746]
[1767513594367,0.04836486,133.86,133.82,0.64416746]
[1767513600977,5.7577353,133.85,133.82,0.64416746]
[1767513601275,0.04836486,133.86,133.82,0.64416746]
[1767513613591,0.04836486,133.86,133.82,0.05107742]
[1767513615790,0.04836486,133.86,133.82,0.60820327]
[1767513620302,0.04836486,133.86,133.82,0.05107742]
[1767513620800,0.04836486,133.86,133.82,0.60820327]
[1767513630909,192.8773,133.94,133.82,0.60820327]
[1767513631109,7.64428876,133.93,133.82,0.60820327]
[1767513631307,5.7756254,133.92,133.82,0.55712585]
[1767513631507,5.7756254,133.91,133.82,0.55712585]
[1767513631708,5.7756254,133.9,133.82,0.55712585]
[1767513631909,5.7756254,133.89,133.83,0.58592309]
[1767513632109,5.7756254,133.88,133.83,0.58592309]
[1767513632408,6.7245,133.9,133.83,0.58592309]
[1767513632607,5.77515815,133.89,133.83,0.58592309]
[1767513632809,5.77515815,133.88,133.83,0.58592309]
[1767513633007,88.3,133.94,133.83,0.58592309]
[1767513633313,5.77595234,133.93,133.85,0.55966639]
[1767513633513,104.5508,133.97,133.85,0.55966639]
[1767513633710,5.7758965,133.96,133.85,0.55966639]
[1767513634013,5.7758965,133.95,133.85,0.55966639]
[1767513634312,5.7758965,133.94,133.85,0.55966639]
[1767513634515,5.7758965,133.93,133.85,0.55966639]
[1767513634811,104.5508,133.97,133.84,88.3]
[1767513634812,6.722,133.95,133.87,0.55966639]
[1767513635014,5.77224691,133.94,133.87,0.55966639]
[1767513635211,6.722,133.95,133.87,0.55966639]
[1767513635412,5.76944335,133.94,133.87,0.55966639]
[1767513635614,6.722,133.95,133.87,0.55966639]
[1767513635811,5.76934012,133.94,133.87,0.55966639]
[1767513636013,6.722,133.95,133.87,0.55966639]
[1767513636215,5.76933796,133.94,133.87,0.55966639]
[1767513636513,6.722,133.95,133.87,0.55966639]
[1767513636711,5.76691796,133.94,133.87,0.55966639]
[1767513637019,6.722,133.95,133.87,0.55966639]
[1767513637020,6.722,133.95,133.88,0.55966639]
[1767513638419,6.7212,133.97,133.88,0.55966639]
[1767513638611,5.76309752,133.96,133.88,7.28486639]
[1767513638819,6.7212,133.97,133.89,0.55966639]
[1767513639116,88.3,133.99,133.89,0.55966639]
[1767513639317,5.76068419,133.98,133.89,0.55966639]
[1767513639620,5.76068419,133.97,133.89,0.55966639]
[1767513639915,88.3,133.99,133.89,0.55966639]
[1767513640113,5.76038022,133.98,133.89,0.55966639]
[1767513640315,5.76038022,133.97,133.89,0.55966639]
[1767513640514,88.3,133.99,133.89,0.55966639]
[1767513640817,5.75767858,133.98,133.89,0.55966639]
[1767513641020,5.75767858,133.97,133.89,0.55966639]
[1767513641218,88.3,133.99,133.89,0.55966639]
[1767513641421,5.75568324,133.98,133.89,0.55966639]
[1767513641611,5.75568324,133.97,133.89,0.55966639]
[1767513641811,88.3,133.99,133.89,0.55966639]
[1767513642108,5.75562591,133.98,133.9,0.55966639]
[1767513642314,5.75562591,133.97,133.9,0.55966639]
[1767513642520,88.3,133.99,133.9,0.55966639]
[1767513642718,5.75370272,133.98,133.9,0.55966639]
[1767513643018,5.75370272,133.97,133.9,0.55966639]
[1767513643217,95.02,133.99,133.9,0.55966639]
[1767513643520,5.75199916,133.98,133.9,0.55966639]
[1767513643708,5.75199916,133.97,133.9,0.55966639]
[1767513643911,95.02,133.99,133.9,0.55966639]
[1767513644113,5.75507054,133.98,133.9,0.55966639]
[1767513644310,5.75507054,133.97,133.89,6.7248]
[1767513644513,5.75329971,133.96,133.87,7.28556639]
[1767513644717,88.3,133.99,133.88,0.55966639]
[1767513644915,0.04988105,133.93,133.88,0.55966639]
[1767513645117,0.04988105,133.93,133.9,0.04853469]
[1767513645314,0.04988105,133.93,133.9,0.60820108]
[1767513646914,0.04988105,133.93,133.9,0.04853469]
[1767513649920,6.77298105,133.93,133.86,0.55966639]
[1767513650118,0.04988105,133.93,133.82,0.55966639]
[1767513650324,104.5718,133.94,133.82,0.55966639]
[1767513650521,5.74954225,133.93,133.82,0.55966639]
[1767513650723,104.5718,133.94,133.82,0.55966639]
[1767513651032,0.05012846,133.89,133.87,0.05503425]
[1767513651236,104.5718,133.94,133.87,0.05503425]
[1767513651419,110.33158817,133.93,133.87,0.05503425]
[1767513651724,5.7972379,133.92,133.82,0.55966639]
[1767513652027,6.725,133.89,133.82,0.55966639]
[1767513652520,0.05029854,133.87,133.82,0.55966639]
[1767513652727,0.05029854,133.87,133.83,0.05414876]
[1767513655828,6.77639854,133.87,133.83,0.05414876]
[1767513656828,0.05029854,133.87,133.83,0.05414876]
[1767513673637,6.77629854,133.87,133.83,0.05414876]
[1767513680742,6.77629854,133.87,133.81,0.55200654]
[1767513681539,6.7265,133.86,133.81,0.55200654]
[1767513681729,7.49893095,133.86,133.81,0.55200654]
[1767513682744,0.77243095,133.84,133.78,0.55200654]
[1767513683246,0.05670194,133.82,133.78,0.55200654]
[1767513685140,0.05670194,133.82,133.74,95.0324]
[1767513685339,0.05670194,133.82,133.75,0.55200654]
[1767513686756,6.78530194,133.82,133.75,0.55200654]
[1767513688043,0.05670194,133.82,133.75,0.55200654]
[1767513688248,0.77243095,133.81,133.75,0.55200654]
[1767513689157,0.05670194,133.82,133.75,0.55200654]
[1767513689354,0.77243095,133.81,133.75,0.55200654]
[1767513689647,6.7292,133.81,133.75,0.55200654]
[1767513689845,0.05670194,133.82,133.75,0.55200654]
[1767513690239,6.78520194,133.82,133.75,0.55200654]
[1767513693649,0.05670194,133.82,133.75,0.55200654]
[1767513693860,0.05670194,133.82,133.78,0.5638641]
[1767513699366,0.05670194,133.82,133.75,0.5638641]
[1767513699367,6.78520194,133.82,133.75,0.5638641]
[1767513704367,6.729,133.81,133.75,0.5638641]
[1767513706875,0.82913289,133.82,133.75,0.5638641]
[1767513707574,6.78520194,133.82,133.75,0.5638641]
[1767513709783,6.7301,133.79,133.72,0.5638641]
[1767513709970,0.05049066,133.77,133.72,0.5638641]
[1767513714681,6.78149066,133.77,133.72,0.5638641]
[1767513718583,6.95090554,133.76,133.64,10.6487]
[1767513718784,6.95090554,133.76,133.39,32.64810924]
[1767513718785,104.7871,133.67,133.54,105.4453641]
[1767513719078,104.7864,133.67,133.55,0.5638641]
[1767513719283,111.74200818,133.66,133.55,0.5638641]
[1767513719471,0.05432922,133.62,133.55,0.5638641]
[1767513719871,0.05432922,133.62,133.52,73.9438641]
[1767513720276,193.157,133.63,133.52,73.9438641]
[1767513720582,1.20862398,133.6,133.49,88.34]
[1767513720773,0.05243653,133.58,133.49,88.34]
[1767513721175,106.04182398,133.61,133.49,88.34]
[1767513721372,0.05682178,133.55,133.48,88.36]
[1767513721580,106.04182398,133.61,133.48,88.36]
[1767513721774,106.04182398,133.61,133.5,0.05071241]
[1767513722083,104.8332,133.61,133.51,0.57484901]
[1767513722283,106.03302398,133.62,133.51,0.57484901]
[1767513722485,1.20862398,133.62,133.51,0.57484901]
[1767513722683,104.8248,133.62,133.49,0.57484901]
[1767513722886,0.05148547,133.58,133.55,0.05411646]
[1767513724184,0.05148547,133.58,133.52,0.57484901]
[1767513724583,0.05148547,133.58,133.49,0.57484901]
[1767513724782,104.8484,133.59,133.49,0.57484901]
[1767513725184,104.8581,133.58,133.49,0.57484901]
[1767513725391,0.05687931,133.55,133.49,0.57484901]
[1767513726280,0.05687931,133.55,133.45,0.57484901]
[1767513726483,0.05687931,133.55,133.46,0.57484901]
[1767513726684,193.2655,133.57,133.47,0.57484901]
[1767513726876,0.05557696,133.52,133.47,0.57484901]
[1767513728379,88.42,133.57,133.48,0.57484901]
[1767513728778,106.01842398,133.64,133.52,0.57484901]
[1767513728976,88.42,133.63,133.52,0.57484901]
[1767513729292,111.5799,133.6,133.52,0.57484901]
[1767513729481,0.05225525,133.58,133.52,0.57484901]
[1767513730084,6.7382,133.63,133.52,0.57484901]
[1767513730289,117.20895589,133.61,133.52,0.57484901]
[1767513730490,111.5752,133.61,133.52,0.57484901]
[1767513730684,1.20862398,133.62,133.52,0.57484901]
[1767513730891,88.44,133.63,133.52,0.57484901]
[1767513731088,0.04760411,133.58,133.56,0.05573846]
[1767513731281,88.44,133.63,133.56,0.05573846]
[1767513731483,5.63030146,133.62,133.56,0.05573846]
[1767513731693,88.44,133.63,133.56,0.05573846]
[1767513731992,5.63030367,133.62,133.56,0.05573846]
[1767513732189,193.2569,133.63,133.56,0.05573846]
[1767513732487,0.052941,133.6,133.56,0.05573846]
[1767513734691,0.052941,133.6,133.56,0.63058747]
[1767513735704,88.46,133.64,133.56,0.63058747]
[1767513735893,5.80301607,133.63,133.56,0.63058747]
[1767513736098,15.99953595,133.68,133.59,0.57484901]
[1767513736099,96.40452398,133.68,133.59,0.57484901]
[1767513736288,5.80469818,133.67,133.59,0.57484901]
[1767513736490,5.80469818,133.66,133.59,0.57484901]
[1767513736690,0.0534597,133.64,133.62,0.05559757]
[1767513737096,0.0534597,133.64,133.59,0.57484901]
[1767513739491,0.0534597,133.64,133.6,0.05204329]
[1767513741100,5.76205179,133.63,133.6,0.05204329]
[1767513741301,0.0534597,133.64,133.6,0.05204329]
[1767513741502,5.76417403,133.63,133.6,0.05204329]
[1767513741699,0.0534597,133.64,133.6,0.05204329]
[1767513741898,5.7640822,133.63,133.6,0.05204329]
[1767513742099,0.0534597,133.64,133.6,0.05204329]
[1767513742297,5.76417775,133.63,133.6,0.05204329]
[1767513742502,0.0534597,133.64,133.6,0.05204329]
[1767513742901,0.0534597,133.64,133.6,0.6268923]
[1767513744696,0.0534597,133.64,133.6,0.05204329]
[1767513744908,5.77088942,133.63,133.6,0.05204329]
[1767513745099,0.0534597,133.64,133.6,0.05204329]
[1767513745300,5.77087563,133.63,133.6,0.05204329]
[1767513745507,6.7911597,133.64,133.6,0.05204329]
[1767513745710,5.77283173,133.63,133.56,0.57484901]
[1767513745909,5.77283173,133.62,133.56,0.57484901]
[1767513746213,6.7377,133.64,133.56,0.57484901]
[1767513746512,5.77280069,133.63,133.56,0.57484901]
[1767513746814,0.05467149,133.61,133.59,0.05302976]
[1767513747501,6.7366,133.66,133.59,0.62787877]
[1767513747701,5.77793745,133.65,133.59,0.62787877]
[1767513747901,5.77793745,133.64,133.59,0.62787877]
[1767513748102,5.77793745,133.63,133.59,0.62787877]
[1767513748302,95.1766,133.66,133.59,0.62787877]
[1767513748499,1.20862398,133.64,133.56,0.57484901]
[1767513748703,5.78100743,133.63,133.56,0.57484901]
[1767513749014,89.64862398,133.66,133.56,0.57484901]
[1767513749216,5.78126958,133.65,133.57,0.57484901]
[1767513749416,5.78126958,133.64,133.57,0.57484901]
[1767513749604,89.64862398,133.68,133.6,0.62907712]
[1767513749912,5.78533726,133.67,133.6,0.62907712]
[1767513750212,5.78533726,133.66,133.6,0.62907712]
[1767513750412,5.78533726,133.65,133.6,0.62907712]
[1767513750606,5.78533726,133.64,133.6,0.62907712]
[1767513750802,0.04784011,133.64,133.6,0.62907712]
[1767513751200,6.7361,133.67,133.6,0.62907712]
[1767513751517,5.7891569,133.66,133.6,0.62907712]
[1767513751707,88.44,133.68,133.6,0.62907712]
[1767513752013,1.20862398,133.69,133.61,0.7382985]
[1767513752214,5.73683131,133.68,133.61,0.7382985]
[1767513752409,5.74093603,133.67,133.61,0.7382985]
[1767513752610,0.05058349,133.66,133.61,0.7382985]
[1767513753817,0.05058349,133.66,133.62,0.74936631]
[1767513754712,7.94292398,133.71,133.63,0.80476725]
[1767513755818,0.05295077,133.68,133.63,0.80476725]
[1767513757212,0.05295077,133.68,133.63,0.05540094]
[1767513757405,1.26157475,133.68,133.63,0.05540094]
[1767513757612,1.26157475,133.68,133.6,88.44]
[1767513757914,1.26157475,133.68,133.6,89.18936631]
[1767513758918,1.26157475,133.68,133.63,0.0516196]
[1767513759718,7.99717475,133.68,133.63,0.0516196]
[1767513761419,5.72300935,133.67,133.6,0.74936631]
[1767513761622,7.94422398,133.68,133.6,0.74936631]
[1767513761918,5.72302135,133.67,133.6,0.74936631]
[1767513762116,7.94422398,133.68,133.6,0.74936631]
[1767513762318,0.05130772,133.65,133.57,7.48996631]
[1767513762518,0.05130772,133.65,133.58,0.74936631]
[1767513762918,1.2599317,133.65,133.58,0.74936631]
[1767513763513,5.7139024,133.64,133.6,0.05488053]
[1767513763715,7.9972317,133.65,133.56,0.74936631]
[1767513763915,5.71360395,133.64,133.56,0.74936631]
[1767513764221,6.7376,133.64,133.56,0.74936631]
[1767513764826,0.04814837,133.61,133.56,0.74936631]
[1767513766326,1.20862398,133.65,133.57,1.87237861]
[1767513766526,1.20862398,133.65,133.58,1.87237861]
[1767513766824,1.20862398,133.65,133.59,1.87237861]
[1767513767024,1.20862398,133.65,133.6,1.87237861]
[1767513767226,1.20862398,133.65,133.56,0.74936631]
[1767513767426,0.05341403,133.64,133.56,0.74936631]
[1767513767925,6.79101403,133.64,133.56,0.74936631]
[1767513771327,6.7381,133.63,133.56,0.74936631]
[1767513771726,0.04893217,133.61,133.56,0.74936631]
[1767513773326,6.7373,133.65,133.57,0.74936631]
[1767513773930,6.7376,133.64,133.57,0.74936631]
[1767513774432,0.04803498,133.62,133.59,0.04868469]
[1767513776232,194.43452398,133.67,133.59,0.04868469]
[1767513776825,6.7376,133.64,133.59,0.04868469]
[1767513777331,0.0556878,133.63,133.59,0.04868469]
[1767513778432,6.7369,133.66,133.6,0.74936631]
[1767513779132,13.4684,133.71,133.63,0.74936631]
[1767513779133,104.7513,133.71,133.63,0.74936631]
[1767513779635,0.05426393,133.68,133.66,0.04769256]
[1767513780330,0.05426393,133.68,133.63,0.74936631]
[1767513781033,0.77461586,133.67,133.6,89.3659758]
[1767513781621,0.05330953,133.65,133.62,0.05023759]
[1767513781833,0.82792539,133.65,133.57,7.6665758]
[1767513782231,0.82792539,133.65,133.57,0.9259758]
[1767513782732,0.77461586,133.63,133.57,0.9259758]
[1767513783134,0.04788238,133.61,133.59,0.04954001]
[1767513785938,0.04788238,133.61,133.55,88.44]
[1767513786635,0.04788238,133.61,133.55,89.3659758]
[1767513787540,0.04788238,133.61,133.56,0.9259758]
[1767513788540,0.82249824,133.61,133.55,89.3659758]
[1767513790537,7.56159824,133.61,133.55,0.9259758]
[1767513791844,6.78698238,133.61,133.55,0.9259758]
[1767513794346,6.78698238,133.61,133.56,0.9259758]
[1767513797342,6.78698238,133.61,133.54,0.9259758]
[1767513797546,6.7397,133.6,133.54,0.9259758]
[1767513798447,6.7401,133.59,133.54,0.9259758]
[1767513798747,0.05256758,133.58,133.52,89.3659758]
[1767513799148,0.05256758,133.58,133.53,0.9259758]
[1767513800243,6.79316758,133.58,133.53,0.9259758]
[1767513800444,0.82718344,133.58,133.5,0.9259758]
[1767513800640,0.77461586,133.58,133.5,0.9259758]
[1767513800845,0.0516243,133.55,133.51,0.9259758]
[1767513805948,0.0516243,133.55,133.49,0.9259758]
[1767513806657,6.7937243,133.55,133.49,0.9259758]
[1767513807553,0.0516243,133.55,133.49,0.9259758]
[1767513808554,0.0516243,133.55,133.49,1.70059166]
[1767513809056,0.0516243,133.55,133.5,0.9259758]
[1767513809642,6.7938243,133.55,133.48,0.9259758]
[1767513809845,0.0516243,133.55,133.48,0.9259758]
[1767513810765,6.7427,133.54,133.48,0.9259758]
[1767513811550,6.7434,133.53,133.48,0.9259758]
[1767513812157,0.05279239,133.52,133.45,1.00641963]
[1767513813155,0.05279239,133.52,133.45,1.78103549]
[1767513813757,6.79649239,133.52,133.45,1.78103549]
[1767513815950,6.7448,133.5,133.43,0.99181828]
[1767513816152,104.9129,133.51,133.43,0.99181828]
[1767513816355,0.05203943,133.48,133.43,0.99181828]
[1767513817956,0.05203943,133.48,133.43,1.76643414]
[1767513818155,0.77461586,133.52,133.44,0.99181828]
[1767513819158,6.7442,133.51,133.45,0.99181828]
[1767513819358,0.04786807,133.49,133.47,0.05211017]
[1767513820955,0.77461586,133.53,133.47,0.05211017]
[1767513821661,6.7434,133.53,133.47,0.05211017]
[1767513822159,0.0533949,133.51,133.47,0.05211017]
[1767513823461,0.82801076,133.51,133.47,0.05211017]
[1767513824755,7.57221076,133.51,133.47,0.05211017]
[1767513824959,7.57221076,133.51,133.45,0.99181828]
[1767513825659,6.7447,133.5,133.45,0.99181828]
[1767513825963,6.7447,133.5,133.42,0.99181828]
[1767513826260,0.0504784,133.47,133.42,0.99181828]
[1767513827954,0.82509426,133.47,133.39,0.99181828]
[1767513828464,6.7467,133.46,133.39,0.99181828]
[1767513829074,49.36,133.43,133.27,9.2759583]
[1767513829364,104.9814,133.42,133.29,0.77461586]
[1767513829552,0.05431344,133.36,133.32,0.77461586]
[1767513829758,104.9564,133.45,133.34,0.77461586]
[1767513830062,3.25163855,133.44,133.34,0.77461586]
[1767513830267,0.77461586,133.42,133.32,88.52]
[1767513830565,0.77461586,133.4,133.29,105.081]
[1767513830761,0.83154302,133.38,133.36,0.05395299]
[1767513830956,0.83154302,133.38,133.28,89.29461586]
[1767513831155,104.9791,133.42,133.31,0.99181828]
[1767513831358,0.77461586,133.39,133.31,0.99181828]
[1767513831964,0.04865201,133.36,133.31,0.99181828]
[1767513832271,0.77461586,133.43,133.32,0.99181828]
[1767513832471,0.77461586,133.43,133.34,0.99181828]
[1767513832666,0.77461586,133.43,133.33,0.77461586]
[1767513832667,0.77461586,133.45,133.36,0.99181828]
[1767513833272,193.4838,133.47,133.36,0.99181828]
[1767513833470,0.0487272,133.42,133.39,0.04933064]
[1767513834065,0.77461586,133.46,133.39,0.04933064]
[1767513834273,104.9202,133.5,133.39,1.04114892]
[1767513834470,0.77461586,133.48,133.39,0.99181828]
[1767513835166,0.77461586,133.48,133.42,0.05010069]
[1767513835375,0.04946814,133.45,133.42,0.05010069]
[1767513836677,6.7455,133.49,133.42,0.05010069]
[1767513837671,104.99461517,133.47,133.35,0.99181828]
[1767513837977,104.99461517,133.47,133.36,0.99181828]
[1767513837978,104.9482,133.46,133.36,0.99181828]
[1767513838786,0.05695479,133.42,133.4,0.05147846]
[1767513840989,6.7461,133.47,133.4,0.05147846]
[1767513841187,233.58484682,133.52,133.4,0.05147846]
[1767513841188,104.9171,133.5,133.4,1.10395065]
[1767513841393,104.9333,133.48,133.37,1.05247219]
[1767513841577,104.9333,133.48,133.37,89.61247219]
[1767513841778,104.9417,133.47,133.37,1.05247219]
[1767513842090,0.05161713,133.43,133.41,0.05517092]
[1767513842282,0.05161713,133.43,133.37,1.05247219]
[1767513843383,0.05161713,133.43,133.39,0.04795619]
[1767513843980,0.05161713,133.43,133.39,1.10042838]
[1767513844987,6.7452,133.49,133.39,1.10042838]
[1767513845187,6.7452,133.49,133.39,1.05247219]
[1767513845781,91.66273623,133.5,133.34,1.05247219]
[1767513845985,0.04827299,133.43,133.41,0.04726029]
[1767513846188,104.9558,133.45,133.34,1.05247219]
[1767513846791,6.7478,133.44,133.34,1.05247219]
[1767513847283,0.05552579,133.4,133.34,1.05247219]
[1767513847892,111.7031,133.45,133.35,1.05247219]
[1767513848193,111.7031,133.45,133.36,1.09972253]
[1767513848194,104.9714,133.43,133.36,1.09972253]
[1767513848390,104.9714,133.43,133.36,1.05247219]
[1767513848594,104.948,133.46,133.36,1.05247219]
[1767513849092,104.948,133.46,133.4,0.05268774]
[1767513849093,0.05368231,133.42,133.4,0.05268774]
[1767513849298,6.7468,133.46,133.4,0.05268774]
[1767513850193,104.9254,133.49,133.4,0.05268774]
[1767513850393,0.05668068,133.44,133.38,1.05247219]
[1767513850905,6.7451,133.49,133.4,1.10279129]
[1767513851192,6.7451,133.49,133.4,1.05247219]
[1767513851993,0.05194856,133.46,133.4,1.05247219]
[1767513852195,0.05194856,133.46,133.43,0.05434383]
[1767513855100,0.05194856,133.46,133.4,1.05247219]
[1767513856401,6.79874856,133.46,133.42,0.05710558]
[1767513857399,0.05194856,133.46,133.42,0.05710558]
[1767513859497,6.79874856,133.46,133.42,0.05710558]
[1767513860103,6.7473,133.45,133.42,0.05710558]
[1767513860300,6.7473,133.45,133.37,1.05247219]
[1767513861501,0.05542453,133.42,133.4,0.05721909]
[1767513863205,6.7473,133.45,133.4,1.10969128]
[1767513864311,0.05641908,133.44,133.4,1.10969128]
[1767513865396,6.7464,133.47,133.4,1.10969128]
[1767513865801,193.4994,133.5,133.4,1.10969128]
[1767513866107,193.4994,133.5,133.4,1.05247219]
[1767513866498,0.04733379,133.46,133.44,0.04920463]
[1767513869712,6.79403379,133.46,133.4,1.05247219]
[1767513870811,0.04733379,133.46,133.42,1.23360111]
[1767513871003,6.746,133.48,133.42,1.23360111]
[1767513871911,6.7449,133.5,133.42,1.23360111]
[1767513872215,6.7449,133.5,133.45,0.0522358]
[1767513873311,0.05741007,133.49,133.45,0.0522358]
[1767513878217,0.05741007,133.49,133.45,1.28717921]
[1767513880016,17.59974682,133.52,133.45,1.28717921]
[1767513881022,0.05097233,133.5,133.45,1.28717921]
[1767513884627,104.9241,133.49,133.41,1.23494341]
[1767513884825,1.21334834,133.48,133.41,1.23494341]
[1767513885925,6.80420548,133.46,133.43,0.04988961]
[1767513887123,0.05750548,133.46,133.43,0.04988961]
[1767513897837,1.27085382,133.46,133.29,7.481]
[1767513898033,49.36,133.48,133.25,1.23494341]
[1767513898034,105.0115,133.38,133.25,1.23494341]
[1767513898332,88.56,133.38,133.26,1.23494341]
[1767513898535,6.7514,133.37,133.28,1.23494341]
[1767513898930,0.04791379,133.34,133.31,0.05204752]
[1767513899125,6.7503,133.39,133.31,0.05204752]
[1767513899332,105.0028,133.39,133.31,0.05204752]
[1767513900238,0.05614018,133.36,133.31,0.05204752]
[1767513901728,0.05614018,133.36,133.31,1.32555289]
[1767513905636,193.5665,133.44,133.33,1.27350537]
[1767513905837,0.77807266,133.42,133.33,1.27350537]
[1767513907740,0.05237671,133.39,133.33,1.27350537]
[1767513908042,0.05237671,133.39,133.36,0.05356231]
[1767513919346,0.05237671,133.39,133.36,1.32706768]
[1767513919557,0.77807266,133.43,133.36,1.32706768]
[1767513920445,0.82893162,133.41,133.36,1.32706768]
[1767513920640,0.82893162,133.41,133.37,0.05110483]
[1767513922541,0.05085896,133.41,133.37,0.05110483]
[1767513927251,0.77807266,133.38,133.32,1.27350537]
[1767513928344,0.05109663,133.36,133.34,0.04763982]
[1767513932145,6.7507,133.38,133.34,0.04763982]
[1767513932146,6.7498,133.4,133.34,1.43070083]
[1767513932856,0.77807266,133.43,133.34,1.43070083]
[1767513933053,0.77807266,133.43,133.34,1.38306101]
[1767513933354,104.9355,133.48,133.37,1.45753386]
[1767513933355,0.77807266,133.44,133.37,1.45753386]
[1767513933653,0.77807266,133.44,133.37,1.40092838]
[1767513934050,7.52587266,133.44,133.37,1.40092838]
[1767513934249,6.7478,133.44,133.37,1.40092838]
[1767513934451,0.04904578,133.42,133.39,0.05322178]
[1767513934652,6.7469,133.46,133.39,1.45415016]
[1767513934955,0.77807266,133.48,133.4,1.40092838]
[1767513935956,0.05599438,133.45,133.43,0.04823433]
[1767513940049,0.05599438,133.45,133.4,1.40092838]
[1767513941051,0.05599438,133.45,133.41,0.05286991]
[1767513946960,104.9171,133.5,133.41,1.45379829]
[1767513947264,105.70237266,133.49,133.41,1.40092838]
[1767513947567,6.7462,133.47,133.41,1.40092838]
[1767513948062,6.7462,133.47,133.43,0.0526699]